Workbook

Sheet Calculos
A1: Datos | E1: 1
A2: Qmd | C2: l/s | E2: 2
A3: Qmax | B3: =+Hidraulica!I10 -> 5.0000 | C3: l/s | P3: h | Q3: =+IF(E1=1,B17+B18*0.0254+B19,"") -> 0.45
A4: coeficiente descarga (Cd) | B4: =+Hidraulica!I12 -> 0.8000
A5: V2 | B5: =+Hidraulica!I14 -> 0.6000 | C5: m/s | F5: Long. afloram. - camara (L) : | H5: =+IF(E1=1,B11,"") -> 1.24 m | I5: m | J5: Altura camara humeda (Ht) : | L5: =+IF(E1=1,B22,"") -> 0.95 | M5: m
A6: g | B6: 9.8100 | C6: m/s2 | P6: H | Q6: =+IF(E1=1,B20+B21,"") -> 0.50
A7: ho= | B7: =+(1.56*(Velocidad^2))/(2*gravedad) -> 0.0286 | C7: m | F7: Ancho de pantalla (b) : | H7: =+IF(E1=1,B16,"") -> 1.68 m | I7: m | J7: N° ranuras de canastilla : | L7: =+IF(E1=1,B27,"") -> 6.00 | M7: und
A8: H | B8: =+Hidraulica!I16 -> 0.4000 | C8: m
A9: Hf | B9: =+alturaH-alturaHo -> 0.3714 | C9: m | F9: Numero de orificios (NA) : | H9: =+IF(E1=1,B15,"") -> 6.00 | I9: und | J9: Tub. rebose - limpia (D) : | L9: =+IF(E1=1,C28,"") -> 4.00 | M9: pulg
A10: Resultados:
A11: Distancia (L) | B11: =+ROUND(PerdidaHf/0.3,2) -> 1.2400 | C11: m
A12: Area de Tub. (A) | B12: =+(B3/(B4*Velocidad))/1000 -> 0.0104 | C12: m2
A13: diametro (D) | B13: =+(((4*B12)/PI())^0.5)/0.0254 -> 4.5340 | C13: pulg
A14: Diametro Asumido | B14: =+Hidraulica!I18 -> 2.0000 | C14: pulg
A15: NA | B15: =+ROUND(((B13^2)/(B14^2))+1,0) -> 6.0000
A16: Ancho de pantalla (b) | B16: =+((9*B14)+(4*B15*B14))*0.0254 -> 1.6764 | C16: m | H16: =+H7 -> 1.68 m
A17: A | B17: =+Hidraulica!I20 -> 0.1000 | C17: m
A18: Diametro de Salida (B) | B18: =+Hidraulica!M10 -> 2.0000 | C18: pulg
A19: H | B19: =+IF(alturaHo<=0.3,0.3,ROUND(alturaHo,2)) -> 0.3000 | C19: m
A20: D | B20: =+Hidraulica!M12 -> 0.2000 | C20: m
A21: Borde libre E | B21: =+Hidraulica!M14 -> 0.3000 | C21: m
A22: Ht | B22: =+B17+(B18*0.0254)+B19+B20+B21 -> 0.9508 | C22: m
A23: Ac | B23: =+(PI()*(B18^2))/4 -> 3.1416 | C23: pulg2
A24: area total de ranuras At | B24: =2*B23*0.0254 -> 0.1596 | C24: m2
A25: long. De canastilla (L) | B25: =+Hidraulica!M16 -> 0.1500 | C25: m | F25: Empuje suelo sobre muro : | H25: =+IF(E2=2,B34,"") -> 0.27 m | I25: tn | J25: Chequeo por vuelco (Cdv) : | L25: =+IF(E2=2,B40,"") -> 2.59 | M25: =+IF(E2=2,C40,"") -> ok
A26: Area de Ranuras | B26: =+Hidraulica!M18 -> 0.0350 | C26: m2
A27: N° de Ranuras | B27: =+ROUND((B24/B26)+1,0) -> 6.0000 | F27: Momento de Vuelco (Mo) : | H27: =+IF(E2=2,B35,"") -> 0.09 | I27: tn-m | J27: Chequeo deslizamiento (Dz) : | L27: =+IF(E2=2,B47,"") -> 2.03 | M27: =+IF(E2=2,C47,"") -> ok
A28: diametro de rebose | B28: =++ROUND((0.71*(B3^0.38))/((0.015)^0.21),1) -> 3.2000 | C28: =+IF(B28<=1,1,IF(B28<=1.5,1.5,IF(B28<=2,2,IF(B28<=2.5,2.5,IF(B28<=3,3,IF(B28<=4,4,IF(B28<=6,6,6))))))) -> 4 | D28: pulg
A29: Altura de Muro h | B29: =+Estructuras!I10 -> 1.0000 | C29: m | F29: Momento estabilizador (Mr) : | H29: =+IF(E2=2,B38,"") -> 0.23 | I29: tn-m | J29: Chequeo Max. Carga Unit : | L29: =+IF(E2=2,C41,"") -> 2.02 | M29: =+IF(E2=2,D41,"") -> ok
A30: angulo de friccion Ø | B30: =+Estructuras!I12 -> 30.0000
A31: Capacidad de carga del terreno | B31: =+Estructuras!I16 -> 10.0000 | C31: tn/m2
A32: peso especifico del suelo | B32: =+Estructuras!I14 -> 1.6000 | C32: tn/m3
A33: coheficiente de empuje Cah | B33: =+(1-SIN(B30*(PI()/180)))/(1+SIN(B30*(PI()/180))) -> 0.3333
A34: Empuje del suelo Sobre el muro P | B34: =+(B33*B32*(B29^2))/2 -> 0.2667 | C34: tn
A35: Momento de Vuelco Mo | B35: =+B34*(B29/3) -> 0.0889 | C35: tn-m
A36: L | B36: =+Estructuras!I18 -> 1.5000
A37: peso estabilizador (Wt) | B37: =+Estructuras!M10 -> 0.9000 | C37: tn
A38: Momento estabilizador Mr | B38: =+(0.5*0.15*2.4+0.075*0.15*2.4)/B37 -> 0.2300 | C38: tn-m
A39: a | B39: =+(B38-B35)/B37 -> 0.1568
A40: chequeo por vuelco Cdv | B40: =+B38/B35 -> 2.5875 | C40: =+IF(B40>B45,"ok","Recalcular") -> ok
A41: p1 | B41: =+(4*B36-6*B39)*(B37/(B36^2)) -> 2.0237 | C41: =+IF(B41>B42,B41,B42) -> 2.023703704 | D41: =+IF(C41<=B31,"ok","Recalcular") -> ok
A42: p1 | B42: =+(6*B39-2*B36)*(B37/(B36^2)) -> -0.8237
A43: Coheficiente de friccion suelo estructura U | B43: =+Estructuras!M12 -> 0.6000
A44: FSD | B44: =+Estructuras!M14 -> 1.5000
A45: FSV | B45: =+Estructuras!M16 -> 1.7500
A46: F | B46: =+B43*B37 -> 0.5400
A47: Chequeo por deslizamiento | B47: =+B46/B34 -> 2.0250 | C47: =+IF(B47>B44,"ok","Recalcular") -> ok
A48: Resumen:
A51: =+A11 -> Distancia (L) | B51: =+B11 -> 1.2400 m
A53: =+A15 -> NA | B53: =+B15 -> 6.0000
A55: =+A16 -> Ancho de pantalla (b) | B55: =+B16 -> 1.6764 m
A57: Area hidraulica (A) | B57: =+IF(B7=0,"",B13) -> 4.5340 m2
A59: Perimetro (P) | B59: =+IF(B7=0,"",B14) -> 2.0000 m
A61: Radio hidráulico (R) | B61: =+IF(B7=0,"",B15) -> 6.0000 m
A63: Espejo de agua (T) | B63: =+IF(B7=0,"",B16) -> 1.6764 m
A65: Num.de Froude (F) | B65: =+IF(B7=0,"",B17) -> 0.1000
A67: Tipo de Flujo: | B67: =+IF(B7=0,"",B18) -> 2.0000
A69: En.Específica(E) | B69: =+IF(B7=0,"",B19) -> 0.3000 m-kg/kg
A71: =+IF(B67<0,"El tirante es mayor que el diámetro. Incremente el Diámetro o la Pendiente","") -> 
A72: Pendiente (s) | B72: =+IF(B7=0,"",B9) -> 0.3714 | H72: =NOW() -> 42430.63339
H73: =TODAY() -> 2016-03-01

Sheet Hidraulica
A3: Proyecto : | B3: Instalacion Del Servicio De Agua Potable En La Localidad De San Jose De Ninabamba Del Distrito De Ocros
A5: Region : | B5: Ayacucho | D5: Provincia: | E5: Huamanga | G5: Distrito: | H5: Ocros | J5: Lugar: | K5: San Jose de Ninabamba
G8: Datos:
G10: Gasto max. de fuente (Qmax): | I10: 5.000 | J10: lts/seg | K10: Diametro tub. salida : | M10: 2.000 | N10: pulg
G12: Coeficiente descarga (Cd) : | I12: 0.800 | K12: Desnivel camara - orificio : | M12: 0.200 | N12: m
G14: Velocidad de pase : | I14: 0.600 | J14: m/seg | K14: Borde Libre : | M14: 0.300 | N14: m
G16: Altura al aflorameinto : | I16: 0.400 | J16: m | K16: Long. de Canastilla : | M16: 0.150 | N16: m
G18: Diametro de orificio (Ø) : | I18: 2.000 | J18: pulg | K18: Area de ranuras : | M18: 0.035 | N18: m²
G20: Altura de Sedimentacion : | I20: 0.100 | J20: m
G24: Alfredo-pf@hotmail.com
G25: RPM. #0217074
G28: Resultados:
G30: Long. afloram. - camara (L) : | I30: =+Calculos!H5 -> 1.240 | J30: m | K30: Altura camara humeda (Ht) : | M30: =+Calculos!L5 -> 0.951 | N30: m
G32: Ancho de pantalla (b) : | I32: =+Calculos!H7 -> 1.676 | J32: m | K32: N° ranuras de canastilla : | M32: =+Calculos!L7 -> 6.000 | N32: und
G34: Numero de orificios (NA) : | I34: =+Calculos!H9 -> 6.000 | J34: und | K34: Tub. rebose - limpia (D) : | M34: =+Calculos!L9 -> 4.000 | N34: pulg

Sheet Estructuras
A3: Proyecto : | B3: =+Hidraulica!B3 -> Instalacion Del Servicio De Agua Potable En La Localidad De San Jose De Ninabamba Del Distrito De Ocros
A5: Region : | B5: =+Hidraulica!B5 -> Ayacucho | D5: Provincia: | E5: =+Hidraulica!E5 -> Huamanga | G5: Distrito: | H5: =+Hidraulica!H5 -> Ocros | J5: Lugar: | K5: =+Hidraulica!K5 -> San Jose de Ninabamba
G8: Datos:
G10: Altura de muro (Ht): | I10: 1.000 | J10: m | K10: Peso de la estructura (Wt) : | M10: 0.900 | N10: tn
G12: Angulo inteno del suelo (Ø) : | I12: 30.000 | K12: Coef. friccion suelo-estruc. : | M12: 0.600
G14: Peso especifico del suelo (δ) : | I14: 1.600 | J14: tn/m³ | K14: FSD : | M14: 1.500
G16: Capacidad carga del suelo : | I16: 10.000 | J16: tn/m² | K16: FSV : | M16: 1.750
G18: Longitud (L) : | I18: 1.500 | J18: m
G20: Alfredo-pf@hotmail.com
G21: RPM. #0217074
G24: Resultados:
G26: Empuje suelo sobre muro : | I26: =+Calculos!H25 -> 0.267 | J26: tn | K26: Chequeo por vuelco (Cdv) : | M26: =+Calculos!L25 -> 2.588 | N26: =+Calculos!M25 -> ok
G28: Momento de Vuelco (Mo) : | I28: =+Calculos!H27 -> 0.089 | J28: tn-m | K28: Chequeo deslizamiento (Dz) : | M28: =+Calculos!L27 -> 2.025 | N28: =+Calculos!M27 -> ok
G30: Momento estabilizador (Mr) : | I30: =+Calculos!H29 -> 0.230 | J30: tn-m | K30: Chequeo Max. Carga Unit : | M30: =+Calculos!L29 -> 2.024 | N30: =+Calculos!M29 -> ok
A33: No se provee Garantía ni seguro alguno sobre el uso y comportamiento del programa. Para cualquier sugerencia que sirva mejorar el presente trabajo dirigirse a la sgte dirección Ricardo Palma N° 108 Abancay - RPM #0217074 (Apurímac - Perú). Para una ayuda del calculo darle click en el logo (AR).

Sheet ayuda
A4: a) Diseño hidráulico y dimensionamiento
A6: Para el dimensionamiento de la captación es necesario conocer el caudal máximo de la fuente, de modo que el diámetro de los orificios de entrada a la cámara húmeda sea suficiente para captar este caudal o gasto. Conocido el gasto, se puede diseñar el área de orificio sobre la base de una velocidad de entrada no muy alta y al coeficiente de contracción de los orificios.
A41: Calculo de la distancia entre el afloramiento y la cámara húmeda.
A43: Es necesario conocer la velocidad de pase y la pérdida de carga sobre el orificio de salida (figura 1.1). Según la ecuación de Bernoulli entre los puntos 0 y 1, resulta:
A50: Considerando los valores de P0, V0, P1 y h1 igual a cero, se tiene:
L65: =0.75*0.75 -> 0.5625
J67: =0.6/0.8 -> 0.75
J68: =+J67^2 -> 0.5625 | L68: =1.56*(0.5)^2 -> 0.39
J69: =9.81*2 -> 19.62 | L69: 0.8
J70: =+J68/J69 -> 0.029 | L70: =+L68/L69 -> 0.4875
L74: =2*9.81*0.8 -> 15.696
A76: Donde:
A77: V2 = Velocidad de pase (se recomienda valores menores o iguales a 0,6 m/s).
A78: Cd = Coeficiente de descarga en el punto 1 (se asume 0,8).
A80: Reemplazando el valor de 1 V de la ecuación (2) en la ecuación (1), se tiene:
A103: Donde Hf es la pérdida de carga que servirá para determinar la distancia entre el
A104: afloramiento y la caja de captación (L).
A105: Hf = H – ho
A106: Hf = 0.30 x L
A107: L = Hf / 0.30
A109: Ancho de la pantalla (b)
A111: Para determinar el ancho de la pantalla es necesario conocer el diámetro y el número
A112: de orificios que permitirán fluir el agua desde la zona de afloramiento hacia la
A113: cámara húmeda. Para el cálculo del diámetro de la tubería de entrada (D), se utilizan
A114: las siguientes ecuaciones.
A116: Qmáx. = V x A x Cd
A117: Qmáx. = A Cd (2 g h )1/2
A119: Donde:
A120: Q máx. = Gasto Máximo de la fuente en l/s.
A121: V = Velocidad de paso (se asume 0,50 m/s, siendo menor que el valor máximo recomendado de 0,60 m/s).
A122: A = Área de la tubería en m2
A123: Cd = Coeficiente de descarga (0,6 a 0,8).
A124: G = Aceleración de la gravedad (9,81 m/s2)
A125: h = Carga sobre el centro del orificio (m).
A127: El valor de A resulta:
A134: Considerando la carga sobre el centro del orificio el valor de A será:
A142: El valor de D será definido mediante:
A147: Número de orificios:
A148: Se recomienda usar diámetros (D) menores o iguales de 2”. Si se obtuvieran diámetros mayores, será necesario aumentar el número de orificios (NA), siendo:
A184: Para el cálculo del ancho de la pantalla, se asume que para una buena distribución
A185: del agua los orificios se deben ubicar como se muestra en la figura 1.3.
A187: Siendo:
A188: “d” el diámetro de la tubería de entrada
A189: “b” el ancho de la pantalla
A190: Conocido el número de orificios y el diámetro de la tubería de entrada, se calcula el
A191: ancho de la pantalla (b) mediante la siguiente ecuación:
A193: b = 2(6D) + NA D + 3D (NA – 1)
A194: b = 12 D + NAD + 3 NAD – 3D
A195: b = 9D + 4 NAD
A197: Donde:
A198: b = Ancho de la pantalla
A199: D = Diámetro del orificio
A200: NA = Número de orificios
A202: Altura de la cámara húmeda
A204: En base a los elementos identificados de la figura 1.4, la altura total de la cámara
A205: húmeda se calcula mediante la siguiente ecuación:
A206: Ht = A + B + H + D + E
A208: Donde:
A209: A = Se considera una altura mínima de 10 cm. Que permite la sedimentación de la arena.
A210: B = Se considera el diámetro de salida.
A211: H = Altura de agua sobre la canastilla.
A212: D = Desnivel mínimo entre el nivel de ingreso del agua del afloramiento y el nivel de agua de la cámara húmeda (mínimo 5 cm.).
A213: E = Borde libre (mínimo 30 cm).
A240: Para determinar la altura de la captación, es necesario conocer la carga requerida
A241: para que el gasto de salida de la captación pueda fluir por la tubería de conducción.
A242: La carga requerida es determinada mediante la siguiente ecuación:
A251: Donde:
A252: H = Carga requerida en m
A253: V = Velocidad promedio en la salida de la tubería de la línea de conducción en m/s
A254: G = Aceleración de la gravedad igual 9,81 m/s2
A255: Se recomienda una altura mínima de H = 30 cm
A257: Dimensionamiento de la canastilla
A259: Para el dimensionamiento se considera que el diámetro de la canastilla debe ser dos
A260: veces el diámetro de la tubería de salida a la línea de conducción (Dc); que el área total de ranuras (At) sea el doble del área de la tubería de la línea de conducción; y que la longitud de la canastilla (L) sea mayor a 3 Dc y menor de 6Dc.
A264: At = 2 Ac
A266: Donde:
A273: Conocidos los valores del área total de ranuras y el área de cada ranura se determina
A274: el número de ranuras:
A281: Tubería de rebose y limpia
A283: En la tubería de rebose y de limpia se recomienda pendientes de 1 a 1,5% y
A284: considerando el caudal máximo de aforo, se determina el diámetro mediante la
A285: ecuación de Hazen y Williams (para C=140).
A294: Donde:
A295: D = Diámetro en pulgadas
A296: Q = Gasto máximo de la fuente en lps
A297: S = Pérdida de carga unitaria en m/m
A299: b) Diseño estructural
A301: Para el diseño estructural se considera el muro sometido al empuje de la tierra cuando la caja está vacía. Si está llena, el empuje hidrostático tiene un componente en el empuje de la tierra, favoreciendo de esta manera la estabilidad del muro. Las cargas consideradas son: el peso propio, el empuje de la tierra y la subpresión.
A327: Para garantizar la estabilidad del muro, se debe verificar que la carga unitaria sea
A328: igual o menor a la capacidad de la carga del terreno; mientras que para garantizar la
A329: estabilidad del muro al deslizamiento y al volteo, se deberá verificar un coeficiente
A330: de seguridad no menor a 1,6.
A332: Empuje del suelo sobre el muro (P)
A410: Donde:
A411: u = Coeficiente de fricción, suelo – estructura concreto
A412: Wt = Peso total de la estructura.
